bitfinex/quotes_SOLUSD_20251218
["timestamp","ask_amount","ask_price","bid_price","bid_amount"]
[1766072822698,0.69,128.33,128.29,19.38023563]
[1766072822900,0.69,128.33,128.27,26.75347937]
[1766072823108,0.69,128.32,128.27,29.52796367]
[1766072823300,0.69,128.31,128.26,10.57029071]
[1766072823500,0.69,128.31,128.26,18.36660871]
[1766072823748,0.69,128.31,128.25,16.60703364]
[1766072823903,0.69,128.31,128.26,10.57029071]
[1766072824305,0.69,128.3,128.24,8.80994492]
[1766072824509,18.36399263,128.31,128.24,8.80994492]
[1766072824510,15.99549441,128.29,128.24,8.80994492]
[1766072824829,0.69,128.28,128.24,8.80994492]
[1766072825369,10.43767296,128.33,128.28,8.80994492]
[1766072825370,11.12767296,128.33,128.28,8.80994492]
[1766072825636,0.69,128.3,128.25,8.80994492]
[1766072825843,11.26029071,128.28,128.23,0.1]
[1766072826005,10.57029071,128.26,128.23,0.1]
[1766072826209,0.69,128.25,128.2,10.57029071]
[1766072826831,0.69,128.25,128.2,18.37029133]
[1766072827021,0.69,128.25,128.2,10.57029071]
[1766072827225,10.57029071,128.24,128.19,8.90994492]
[1766072827445,18.95767296,128.27,128.19,0.1]
[1766072827446,11.26029071,128.22,128.19,0.1]
[1766072827630,0.69,128.22,128.19,0.1]
[1766072827817,0.69,128.33,128.21,10.67029071]
[1766072828021,0.69,128.29,128.22,8.80994492]
[1766072828222,0.69,128.27,128.19,8.64]
[1766072828524,0.69,128.26,128.2,8.80994492]
[1766072828725,0.69,128.26,128.21,10.57029071]
[1766072828949,19.64767296,128.29,128.24,10.57029071]
[1766072829246,0.69,128.27,128.23,10.57029071]
[1766072829466,0.69,128.27,128.21,10.43767296]
[1766072829622,0.69,128.27,128.23,10.57029071]
[1766072830249,0.69,128.27,128.22,8.80994492]
[1766072830250,0.69,128.26,128.22,8.80994492]
[1766072830446,0.69,128.26,128.21,10.57029071]
[1766072830655,0.69,128.26,128.21,18.36995475]
[1766072830859,0.69,128.26,128.21,10.57029071]
[1766072831062,0.69,128.25,128.2,8.80994492]
[1766072831354,0.69,128.24,128.2,10.57029071]
[1766072831555,0.69,128.22,128.19,0.1]
[1766072831727,11.26029071,128.22,128.19,0.1]
[1766072832048,11.26029071,128.22,128.15,19.50802696]
[1766072832049,0.69,128.2,128.15,10.57029071]
[1766072832760,0.69,128.2,128.15,18.37363851]
[1766072832959,0.69,128.2,128.15,19.38023563]
[1766072833254,11.27029071,128.2,128.14,10.57029071]
[1766072833559,0.7,128.2,128.15,18.37345728]
[1766072833762,10.57029071,128.23,128.18,10.57029071]
[1766072833962,0.7,128.22,128.18,10.57029071]
[1766072834125,30.22796367,128.24,128.19,10.57029071]
[1766072834324,0.7,128.24,128.21,10.57029071]
[1766072834551,8.52,128.27,128.19,8.80994492]
[1766072834850,0.7,128.26,128.19,8.80994492]
[1766072835053,0.7,128.26,128.16,10.43767296]
[1766072835269,0.7,128.22,128.17,8.80994492]
[1766072835465,0.7,128.22,128.17,19.38023563]
[1766072835638,0.7,128.22,128.18,10.57029071]
[1766072836046,0.7,128.22,128.17,19.38023563]
[1766072836334,0.7,128.22,128.18,10.57029071]
[1766072837125,0.7,128.22,128.17,19.38023563]
[1766072837362,0.7,128.21,128.14,8.54]
[1766072837571,10.57029071,128.2,128.14,19.38023563]
[1766072837775,0.7,128.19,128.14,19.38023563]
[1766072838068,0.7,128.19,128.15,10.57029071]
[1766072838230,8.52,128.2,128.16,10.57029071]
[1766072838428,0.7,128.21,128.18,10.57029071]
[1766072838633,10.43767296,128.22,128.16,10.57029071]
[1766072838634,30.22796367,128.22,128.16,10.57029071]
[1766072838854,0.7,128.21,128.16,10.57029071]
[1766072839368,8.54,128.24,128.2,10.57029071]
[1766072839673,19.81029071,128.24,128.18,10.57029071]
[1766072839968,0.7,128.23,128.18,7.80151993]
[1766072840338,0.7,128.23,128.18,18.37181064]
[1766072840863,0.7,128.23,128.18,10.57029071]
[1766072841241,0.7,128.23,128.18,18.37177125]
[1766072841443,0.7,128.23,128.19,19.38023563]
[1766072841645,0.7,128.23,128.18,7.80146128]
[1766072841959,0.7,128.23,128.19,18.37113007]
[1766072842457,19.67767296,128.24,128.2,10.57029071]
[1766072842674,19.67767296,128.24,128.18,16.61125991]
[1766072842675,19.67767296,128.24,128.19,19.38023563]
[1766072843275,27.47561514,128.24,128.18,7.80131499]
[1766072843448,26.77561514,128.24,128.18,8.80994492]
[1766072843633,0.7,128.23,128.18,19.38023563]
[1766072843831,0.7,128.23,128.16,7.80247085]
[1766072844043,0.7,128.21,128.17,19.38023563]
[1766072844557,0.7,128.21,128.17,8.80994492]
[1766072844757,0.7,128.21,128.14,38.68704745]
[1766072844758,0.7,128.2,128.15,10.57029071]
[1766072845071,7.79924633,128.22,128.15,10.57029071]
[1766072845072,9.24,128.22,128.18,10.57029071]
[1766072845389,9.24,128.22,128.17,18.37226691]
[1766072845567,9.24,128.22,128.17,7.8019762]
[1766072845745,9.24,128.22,128.17,10.57029071]
[1766072845944,9.24,128.22,128.18,10.57029071]
[1766072846139,9.24,128.22,128.16,16.61240059]
[1766072846354,16.33916984,128.22,128.17,10.57029071]
[1766072846550,0.7,128.21,128.16,19.38023563]
[1766072846862,0.7,128.21,128.15,7.803067]
[1766072846863,0.7,128.2,128.15,10.57029071]
[1766072847039,0.7,128.18,128.13,0.1]
[1766072847241,0.7,128.17,128.13,0.1]
[1766072848542,0.7,128.16,128.13,0.1]
[1766072848756,0.7,128.15,128.12,0.1]
[1766072849288,0.7,128.13,128.07,16.34802011]
[1766072849462,0.7,128.13,128.09,6.52865658]
[1766072849980,0.7,128.13,128.08,6.52865658]
[1766072850285,0.7,128.12,128.07,6.52865658]
[1766072850989,9.24,128.13,128.09,6.52865658]
[1766072851192,0.7,128.14,128.08,9.20994492]
[1766072851359,9.24,128.16,128.11,6.52865658]
[1766072851560,8.80994492,128.2,128.11,6.52865658]
[1766072851561,0.7,128.24,128.15,6.52865658]
[1766072851762,10.43767296,128.2,128.14,0.4]
[1766072851993,0.7,128.19,128.14,6.52865658]
[1766072852296,8.54,128.19,128.15,6.52865658]
[1766072852456,9.24,128.19,128.13,27.71595096]
[1766072852960,9.24,128.19,128.15,6.52865658]
[1766072853174,9.24,128.19,128.14,6.52865658]
[1766072853488,0.7,128.18,128.13,7.80455998]
[1766072853697,8.54,128.19,128.15,6.52865658]
[1766072853855,19.67767296,128.2,128.14,0.4]
[1766072854179,9.24,128.2,128.16,6.52865658]
[1766072854357,8.54,128.2,128.15,6.52865658]
[1766072854564,0.7,128.19,128.14,6.52865658]
[1766072855179,0.7,128.19,128.14,14.33250666]
[1766072855679,0.7,128.19,128.14,6.52865658]
[1766072855983,0.7,128.17,128.12,16.61476929]
[1766072856190,8.50221831,128.17,128.12,6.52865658]
[1766072856377,8.50221831,128.17,128.11,16.61560833]
[1766072856684,0.7,128.16,128.11,16.61560833]
[1766072857064,0.7,128.15,128.09,8.54]
[1766072857262,0.7,128.15,128.09,16.34689138]
[1766072857462,0.7,128.15,128.1,14.33487279]
[1766072857769,8.54,128.17,128.14,6.52865658]
[1766072858300,8.54,128.17,128.12,6.52865658]
[1766072858460,9.24,128.17,128.12,14.33379742]
[1766072858663,9.24,128.17,128.11,14.73419821]
[1766072859081,0.7,128.15,128.09,33.31305977]
[1766072859281,5.60205296,128.14,128.09,24.77297234]
[1766072859482,0.7,128.14,128.1,16.61628516]
[1766072859667,9.24,128.14,128.09,7.80679532]
[1766072859978,0.7,128.13,128.07,14.33668339]
[1766072860172,5.60315795,128.12,128.06,22.97716138]
[1766072860373,7.22865658,128.12,128.06,7.9085048]
[1766072860574,7.22865658,128.12,128.06,0.1]
[1766072860575,0.7,128.11,128.06,0.1]
[1766072860782,14.33397475,128.12,127.98,0.1]
[1766072860783,10.43767296,128.09,127.98,0.1]
[1766072860984,4.90685624,128.1,127.98,0.1]
[1766072860985,16.96632954,128.05,128.0,0.7]
[1766072861291,10.43767296,128.05,128.0,6.52865658]
[1766072861476,10.43767296,128.05,128.01,7.22865658]
[1766072861811,8.54,128.06,128.03,0.7]
[1766072861961,25.50632954,128.09,128.03,7.22865658]
[1766072862165,4.90872297,128.08,128.04,0.7]
[1766072862502,6.52865658,128.1,128.06,7.19865658]
[1766072862503,8.54,128.1,128.06,7.19865658]
[1766072862669,0.68,128.11,128.04,9.42994492]
[1766072862876,18.97767296,128.12,128.08,6.52865658]
[1766072863093,15.06865658,128.16,128.1,6.52865658]
[1766072863397,15.06865658,128.16,128.09,8.80994492]
[1766072863398,17.64632954,128.15,128.09,15.3386015]
[1766072863596,11.11767296,128.15,128.09,8.80994492]
[1766072863907,11.11767296,128.15,128.1,6.52865658]
[1766072864083,11.11767296,128.15,128.09,8.80994492]
[1766072864292,0.68,128.15,128.09,8.80994492]
[1766072864597,19.50142165,128.2,128.12,6.52865658]
[1766072864789,0.68,128.17,128.12,6.52865658]
[1766072864989,0.68,128.17,128.11,15.9586015]
[1766072865189,7.20865658,128.17,128.11,7.14865658]
[1766072865382,7.20865658,128.17,128.11,0.62]
[1766072865578,7.20865658,128.17,128.1,15.3386015]
[1766072865789,0.68,128.15,128.09,15.3386015]
[1766072865990,0.68,128.15,128.09,23.14544408]
[1766072866170,7.20865658,128.15,128.09,15.3386015]
[1766072866774,0.68,128.15,128.09,15.3386015]
[1766072867079,7.20865658,128.13,128.07,10.43767296]
[1766072867299,0.68,128.11,128.07,10.43767296]
[1766072867493,0.68,128.11,128.05,16.61891485]
[1766072867794,0.68,128.09,128.03,7.8106317]
[1766072867997,7.20865658,128.09,128.03,6.52865658]
[1766072868298,0.68,128.09,128.03,6.52865658]
[1766072868484,7.20865658,128.08,128.02,0.62]
[1766072868675,0.68,128.08,128.02,7.14865658]
[1766072868997,0.68,128.08,128.02,14.95990067]
[1766072869305,7.20865658,128.08,128.01,8.54]
[1766072869594,7.20865658,128.08,128.02,6.52865658]
[1766072869776,7.20865658,128.08,128.01,15.68865658]
[1766072870176,15.01648604,128.08,128.01,16.97151847]
[1766072870423,6.52865658,128.07,128.01,23.50017505]
[1766072870883,6.52865658,128.07,128.01,16.97151847]
[1766072871085,0.68,128.07,128.02,8.80994492]
[1766072871304,7.20865658,128.08,128.02,8.80994492]
[1766072871479,25.50632954,128.09,128.03,0.62]
[1766072871683,26.18632954,128.09,128.03,0.62]
[1766072872085,9.22,128.09,128.03,0.62]
[1766072872286,7.20865658,128.11,128.05,8.80994492]
[1766072872692,6.52865658,128.09,128.04,8.43005935]
[1766072872896,0.68,128.11,128.04,8.43005935]
[1766072873075,6.52865658,128.09,128.04,0.62]
[1766072873275,7.20865658,128.11,128.05,9.42994492]
[1766072873591,15.74865658,128.14,128.07,7.14865658]
[1766072874108,6.52865658,128.13,128.07,7.14865658]
[1766072874310,6.52865658,128.13,128.08,8.80994492]
[1766072874607,0.68,128.12,128.05,16.96885933]
[1766072874798,9.48994492,128.16,128.06,0.62]
[1766072874996,39.00110651,128.21,128.06,0.62]
[1766072874997,7.20865658,128.13,128.08,8.80994492]
[1766072875183,8.48341463,128.15,128.08,9.42994492]
[1766072875379,6.52865658,128.17,128.1,7.14865658]
[1766072875618,7.20865658,128.17,128.1,7.14865658]
[1766072875987,0.68,128.17,128.11,6.52865658]
[1766072876394,7.20865658,128.17,128.11,14.33423942]
[1766072876809,0.68,128.17,128.11,14.33423942]
[1766072877120,0.68,128.17,128.11,14.95423942]
[1766072877121,7.20865658,128.17,128.11,14.95423942]
[1766072877477,7.20865658,128.15,128.09,8.80994492]
[1766072877683,0.68,128.12,128.07,14.33669019]
[1766072878393,0.68,128.14,128.08,15.3386015]
[1766072878590,7.20865658,128.14,128.08,15.3386015]
[1766072879314,0.68,128.14,128.08,15.3386015]
[1766072879490,7.20865658,128.14,128.08,15.3386015]
[1766072880010,0.68,128.14,128.08,15.9586015]
[1766072880220,19.50534446,128.17,128.1,7.14865658]
[1766072880221,7.80235722,128.17,128.1,7.14865658]
[1766072880509,7.20865658,128.16,128.1,14.33453776]
[1766072880706,7.20865658,128.16,128.09,8.80994492]
[1766072880707,6.52865658,128.15,128.09,8.80994492]
[1766072881014,7.20865658,128.16,128.1,14.33502271]
[1766072881383,7.20865658,128.16,128.1,14.33484773]
[1766072881910,0.68,128.16,128.11,23.14438438]
[1766072882124,6.52865658,128.15,128.07,19.51982744]
[1766072882290,0.7,128.14,128.09,14.33560597]
[1766072882705,0.7,128.14,128.09,7.80694939]
[1766072882983,0.7,128.14,128.09,14.33560597]
[1766072883185,18.97767296,128.18,128.09,14.33560597]
[1766072883186,9.24,128.17,128.11,6.52865658]
[1766072883381,15.76865658,128.17,128.11,6.52865658]
[1766072883600,0.7,128.17,128.12,0.62]
[1766072883813,7.22865658,128.19,128.13,15.3386015]
[1766072884034,7.22865658,128.18,128.13,15.3386015]
[1766072884316,0.7,128.18,128.13,15.3386015]
[1766072884703,0.7,128.18,128.13,23.14308419]
[1766072885511,7.22865658,128.18,128.13,23.14308419]
[1766072885716,6.52865658,128.17,128.12,8.42506471]
[1766072886013,0.7,128.14,128.09,8.80994492]
[1766072886214,7.22865658,128.14,128.09,16.61672617]
[1766072886403,0.7,128.14,128.1,7.8062081]
[1766072886598,6.52865658,128.15,128.1,7.8062081]
[1766072886804,17.66632954,128.18,128.12,6.52865658]
[1766072887003,7.22865658,128.18,128.12,6.52865658]
[1766072887206,0.7,128.18,128.13,6.52865658]
[1766072887518,0.7,128.23,128.14,15.3386015]
[1766072887697,6.52865658,128.22,128.16,6.52865658]
[1766072887896,6.52865658,128.19,128.11,0.62]
[1766072888102,7.22865658,128.16,128.11,8.80994492]
[1766072888308,0.7,128.16,128.11,8.80994492]
[1766072888514,7.22865658,128.16,128.1,22.87486468]
[1766072888900,7.22865658,128.16,128.1,23.49486468]
[1766072889212,7.22865658,128.14,128.09,19.24761788]
[1766072889417,7.22865658,128.14,128.09,16.61650066]
[1766072889619,0.7,128.14,128.1,7.80636001]
[1766072889815,7.22865658,128.17,128.11,6.52865658]
[1766072890124,12.16064131,128.16,128.11,8.80994492]
[1766072890445,7.22865658,128.16,128.11,8.80994492]
[1766072890609,0.7,128.16,128.12,7.80518264]
[1766072891590,0.7,128.16,128.11,23.14096791]
[1766072892200,110.10161748,128.18,128.11,23.14096791]
[1766072892416,4.93499334,128.17,128.12,7.14540104]
[1766072892619,110.84,128.18,128.12,14.9501247]
[1766072892801,111.52,128.18,128.12,14.9501247]
[1766072893121,118.04540104,128.18,128.12,14.9501247]
[1766072893613,0.68,128.18,128.13,8.80994492]
[1766072893817,6.52540104,128.2,128.14,6.52540104]
[1766072894021,4.93339192,128.19,128.14,7.14540104]
[1766072894195,4.93339192,128.18,128.14,6.52540104]
[1766072894904,4.93339192,128.18,128.13,15.95534596]
[1766072895117,4.93339192,128.18,128.13,23.75977852]
[1766072895505,5.61339192,128.18,128.13,16.61437748]
[1766072895700,0.68,128.18,128.13,23.75977852]
[1766072896621,12.1376077,128.17,128.11,14.95078217]
[1766072896846,7.20540104,128.17,128.11,14.95078217]
[1766072897000,0.68,128.17,128.11,8.42538113]
[1766072897204,0.68,128.17,128.12,6.52540104]
[1766072898253,0.68,128.17,128.07,19.51960025]
[1766072898257,6.52540104,128.14,128.07,19.51960025]
[1766072898396,6.52540104,128.1,128.05,7.80922009]
[1766072898603,7.20540104,128.1,128.05,7.80922009]
[1766072898802,7.20540104,128.1,128.05,18.24689305]
[1766072899230,8.54,128.14,128.05,18.24689305]
[1766072899231,0.68,128.17,128.1,0.62]
[1766072899425,4.93550263,128.16,128.13,6.52540104]
[1766072899630,9.22,128.19,128.14,6.52540104]
[1766072899809,4.93354028,128.18,128.13,9.42994492]
[1766072900012,15.74540104,128.19,128.13,15.95534596]
[1766072900206,4.78430391,128.18,128.13,15.95534596]
[1766072900406,0.68,128.16,128.11,10.43767296]
[1766072900623,0.68,128.16,128.11,24.76840753]
[1766072901137,0.68,128.16,128.11,25.38840753]
[1766072901602,7.20540104,128.18,128.12,6.52540104]
[1766072901807,0.68,128.17,128.12,6.52540104]
[1766072902506,7.20540104,128.17,128.12,6.52540104]
[1766072902811,6.52540104,128.15,128.09,6.52540104]
[1766072903005,0.68,128.13,128.08,14.95254032]
[1766072903311,6.52540104,128.11,128.06,7.80873917]
[1766072903512,18.97767296,128.15,128.05,8.80994492]
[1766072903513,7.20540104,128.1,128.05,8.80994492]
[1766072903721,18.97767296,128.15,128.02,19.52763163]
[1766072903722,7.20540104,128.07,128.02,6.52540104]
[1766072904032,7.20540104,128.07,128.01,7.14540104]
[1766072904229,0.68,128.06,128.0,8.54]
[1766072904430,0.68,128.06,128.03,10.43767296]
[1766072904431,7.20540104,128.06,128.03,10.43767296]
[1766072904612,0.68,128.06,128.01,14.33693128]
[1766072904812,0.68,128.06,128.01,24.77460424]
[1766072905224,0.68,128.06,128.01,14.33693128]
[1766072905431,0.68,128.06,128.03,10.43767296]
[1766072905647,7.20540104,128.08,128.03,10.43767296]
[1766072906646,7.20540104,128.08,128.03,18.24825277]
[1766072907148,0.68,128.07,128.03,10.43767296]
[1766072907346,7.20540104,128.07,128.03,10.43767296]
[1766072907552,0.68,128.07,128.03,18.24831645]
[1766072907929,6.52540104,128.09,128.03,24.77363043]
[1766072908235,6.52540104,128.09,128.03,25.39363043]
[1766072908433,7.20540104,128.08,128.03,18.24822939]
[1766072908749,0.68,128.08,128.03,24.77363043]
[1766072909443,0.68,128.08,128.03,48.39126187]
[1766072909638,11.29635905,128.11,128.05,10.61635905]
[1766072910045,10.61635905,128.11,128.04,8.80994492]
[1766072910235,0.68,128.1,128.05,10.61635905]
[1766072910441,0.68,128.1,128.06,10.61635905]
[1766072910637,0.68,128.1,128.05,10.61635905]
[1766072911145,0.68,128.1,128.05,7.80944943]
[1766072911146,11.29635905,128.1,128.05,7.80944943]
[1766072911354,0.68,128.09,128.04,8.42983671]
[1766072911552,11.29635905,128.08,128.03,10.43767296]
[1766072911752,0.68,128.07,128.03,10.61635905]
[1766072912251,0.68,128.07,128.02,21.05403201]
[1766072912452,0.68,128.1,128.03,11.23635905]
[1766072912632,0.68,128.08,128.03,10.61635905]
[1766072912949,0.68,128.07,128.02,10.43767296]
[1766072913154,0.68,128.07,128.02,28.86506408]
[1766072913452,0.68,128.05,128.02,10.43767296]
[1766072914045,11.29635905,128.07,128.02,10.43767296]
[1766072914427,8.54,128.08,128.02,10.43767296]
[1766072914652,0.68,128.06,128.02,10.43767296]
[1766072914855,11.29635905,128.06,128.02,10.43767296]
[1766072915066,0.68,128.06,128.02,18.24882149]
[1766072915353,11.11767296,128.1,128.04,10.61635905]
[1766072915655,0.68,128.09,128.04,10.61635905]
[1766072916153,11.29635905,128.09,128.04,10.61635905]
[1766072916843,0.68,128.09,128.03,9.42994492]
[1766072917045,0.68,128.09,128.04,10.61635905]
[1766072917349,0.68,128.11,128.05,9.42994492]
[1766072917539,8.80994492,128.15,128.05,9.42994492]
[1766072917540,11.29635905,128.1,128.05,0.62]
[1766072917741,10.61635905,128.12,128.06,19.42630397]
[1766072918063,0.68,128.1,128.05,8.80994492]
[1766072918271,0.68,128.1,128.04,18.86773231]
[1766072918432,0.68,128.1,128.05,10.61635905]
[1766072919144,0.68,128.1,128.06,10.61635905]
[1766072919342,0.68,128.1,128.05,10.61635905]
[1766072919737,0.68,128.1,128.05,18.42577822]
[1766072919933,0.68,128.1,128.05,7.80941917]
[1766072920134,0.68,128.1,128.05,18.42577822]
[1766072920653,10.61635905,128.1,128.05,10.61635905]
[1766072920839,0.68,128.09,128.04,28.86378758]
[1766072921236,0.68,128.09,128.05,10.61635905]
[1766072921835,7.80536112,128.12,128.04,18.24742853]
[1766072921836,10.61635905,128.12,128.06,10.61635905]
[1766072922039,8.54,128.12,128.08,10.61635905]
[1766072922443,9.2,128.12,128.08,10.61635905]
[1766072922639,0.66,128.12,128.07,21.05403201]
[1766072923042,0.66,128.12,128.07,10.43767296]
[1766072923261,0.66,128.12,128.07,18.42445725]
[1766072923565,0.66,128.12,128.08,10.61635905]
[1766072923734,0.24556385,128.19,128.08,10.61635905]
[1766072923735,10.61635905,128.16,128.1,10.61635905]
[1766072923939,14.02866843,128.15,128.1,10.61635905]
[1766072924138,9.2,128.15,128.1,10.61635905]
[1766072924456,0.66,128.14,128.1,10.61635905]
[1766072924653,0.66,128.14,128.09,10.61635905]
[1766072924961,0.66,128.14,128.08,0.62]
[1766072925164,0.66,128.14,128.1,10.61635905]
[1766072925552,28.31157272,128.2,128.1,7.80607037]
[1766072925743,0.66,128.18,128.13,0.62]
[1766072925949,0.66,128.2,128.13,0.62]
[1766072926151,4.82565854,128.19,128.15,10.61635905]
[1766072926460,0.66,128.2,128.15,10.61635905]
[1766072926670,5.48500177,128.19,128.15,10.61635905]
[1766072926865,0.66,128.19,128.16,10.61635905]
[1766072927065,0.66,128.21,128.17,10.61635905]
[1766072927269,9.2,128.21,128.17,10.61635905]
[1766072927450,8.54,128.21,128.15,7.80324711]
[1766072927656,0.66,128.2,128.15,7.80324711]
[1766072927859,0.66,128.2,128.17,10.61635905]
[1766072928564,0.66,128.22,128.18,10.61635905]
[1766072928775,0.66,128.22,128.17,10.61635905]
[1766072929144,0.66,128.22,128.16,16.61254265]
[1766072929459,27.15484876,128.23,128.14,18.97767296]
[1766072929460,7.79970361,128.21,128.14,18.97767296]
[1766072929768,0.66,128.18,128.14,10.43767296]
[1766072930266,0.66,128.18,128.14,21.05403201]
[1766072930474,9.2,128.2,128.15,10.61635905]
[1766072930673,0.66,128.19,128.14,18.24130765]
[1766072930866,0.66,128.19,128.15,10.61635905]
[1766072931170,0.66,128.19,128.14,28.8576667]
[1766072931881,0.66,128.19,128.15,18.41949014]
[1766072932173,0.66,128.22,128.17,0.62]
[1766072932364,0.66,128.22,128.18,10.61635905]
[1766072934055,0.2,128.23,128.18,7.80134837]
[1766072934363,0.86,128.23,128.19,10.61635905]
[1766072935547,11.27635905,128.22,128.18,10.43767296]
[1766072935747,0.66,128.21,128.18,10.43767296]
[1766072936459,0.66,128.21,128.18,21.05403201]
[1766072936666,0.66,128.21,128.18,10.43767296]
[1766072936864,0.66,128.21,128.18,21.05403201]
[1766072938267,0.66,128.21,128.18,10.61635905]
[1766072938553,0.66,128.21,128.18,21.05403201]
[1766072938759,0.66,128.21,128.18,28.85538635]
[1766072939185,0.66,128.21,128.18,10.43767296]
[1766072939357,8.74,128.23,128.18,21.05403201]
[1766072939557,0.66,128.22,128.18,10.43767296]
[1766072941791,0.66,128.22,128.18,21.05403201]
[1766072942682,0.66,128.22,128.18,10.43767296]
[1766072942888,0.66,128.22,128.18,21.05403201]
[1766072943668,8.74,128.23,128.18,28.85551533]
[1766072943866,8.74,128.23,128.18,18.85915628]
[1766072944068,9.45,128.23,128.19,10.61635905]
[1766072944694,0.2,128.23,128.2,10.61635905]
[1766072945012,0.2,128.23,128.22,10.61635905]
[1766072945174,0.2,128.27,128.22,11.03635905]
[1766072945490,8.74,128.27,128.23,7.79836207]
[1766072945666,9.45,128.27,128.24,10.61635905]
[1766072945871,0.71,128.26,128.21,27.04729555]
[1766072946088,0.71,128.26,128.21,10.43767296]
[1766072946392,0.71,128.24,128.21,10.43767296]
[1766072946595,0.71,128.21,128.16,16.61236296]
[1766072946813,0.71,128.21,128.09,0.99999999]
[1766072946814,0.71,128.19,128.14,18.41999218]
[1766072946972,0.71,128.19,128.15,7.80322095]
[1766072947167,0.71,128.19,128.14,18.84013592]
[1766072947402,0.71,128.19,128.13,16.61423774]
[1766072947403,11.32635905,128.19,128.13,16.61423774]
[1766072947693,0.71,128.18,128.14,10.61635905]
[1766072948777,19.49640307,128.23,128.17,11.03635905]
[1766072948778,9.25,128.22,128.17,11.03635905]
[1766072948984,9.25,128.22,128.17,0.42]
[1766072949171,0.71,128.2,128.15,10.61635905]
[1766072949381,0.71,128.19,128.15,10.61635905]
[1766072950102,0.71,128.19,128.16,10.61635905]
[1766072950404,0.71,128.19,128.15,10.61635905]
[1766072950783,0.71,128.19,128.1,0.42]
[1766072950784,19.15635905,128.18,128.1,0.42]
[1766072951000,0.71,128.17,128.13,10.61635905]
[1766072952006,10.61635905,128.16,128.09,7.80658616]
[1766072952210,0.71,128.12,128.07,10.61635905]
[1766072952412,0.7,128.1,128.05,10.61635905]
[1766072952578,10.61635905,128.12,128.06,21.05403201]
[1766072952775,9.24,128.14,128.1,10.61635905]
[1766072953021,11.31635905,128.17,128.11,10.61635905]
[1766072953205,0.7,128.16,128.09,18.24467446]
[1766072953497,0.7,128.13,128.09,10.43767296]
[1766072953882,0.7,128.13,128.09,21.05403201]
[1766072954408,0.7,128.13,128.09,10.43767296]
[1766072954597,11.31635905,128.13,128.09,10.43767296]
[1766072954988,0.7,128.12,128.09,10.43767296]
[1766072955202,0.7,128.11,128.07,10.61635905]
[1766072955405,0.7,128.11,128.05,27.05683017]
[1766072955701,0.7,128.07,128.02,7.8108476]
[1766072955885,9.24,128.09,128.05,10.61635905]
[1766072956092,8.54,128.09,128.05,10.61635905]
[1766072956300,0.7,128.08,128.05,10.61635905]
[1766072957184,0.7,128.09,128.06,10.61635905]
[1766072957387,0.7,128.09,128.05,10.61635905]
[1766072958304,0.7,128.08,128.02,10.43767296]
[1766072958605,10.61635905,128.07,128.02,10.43767296]
[1766072958789,7.80771215,128.08,127.99,18.42933361]
[1766072958790,0.7,128.04,127.99,18.42933361]
[1766072958979,0.7,128.04,127.99,7.81297456]
[1766072959182,0.7,128.04,127.99,27.23927853]
[1766072959405,0.7,128.04,128.0,18.42873931]
[1766072959604,0.7,128.04,127.99,27.23918656]
[1766072959806,0.7,128.04,127.99,10.61635905]
[1766072960007,0.7,128.04,127.99,18.42942782]
[1766072960204,0.7,128.04,127.99,7.81306877]
[1766072960503,0.7,128.04,127.98,7.9135998]
[1766072960802,0.7,128.04,128.0,10.61635905]
[1766072961011,0.7,128.03,127.99,10.61635905]
[1766072961305,0.7,128.02,127.98,0.1]
[1766072961511,0.7,128.02,127.98,7.91366132]
[1766072962180,0.7,128.02,127.98,0.1]
[1766072962388,0.7,128.01,127.98,0.1]
[1766072962597,0.7,127.99,127.96,10.6249359]
[1766072962909,9.24,128.02,127.97,10.6249359]
[1766072963315,10.43767296,128.04,127.98,10.6249359]
[1766072963486,0.7,128.06,127.98,10.95767296]
[1766072963681,0.7,128.04,127.99,10.6249359]
[1766072963888,0.7,128.04,127.96,17.34994492]